Cogmind - Beta 16.1 @@@ ROGUE MODE // 2026.02.27 @ 16:55:52 Player: TheSkyeDoctor Result: Destroyed by H-88 Terminator with Heavy Machine Gun Performance ------------- Evolutions (8) 4000 Regions Visited (19) 3800 Robots Destroyed (197) 985 Value Destroyed (8249) 8249 Prototype IDs (20) 400 Alien Tech Used (0) 0 Bonus (2383) 2383 TOTAL SCORE: 19817 Bonus ------- High Alert Combat Kills 112 Follower Combat Kills 2058 Scanned by Researcher 500 Friendly Fire -287 Cogmind --------- Core Integrity 0/1450 Matter 236/300 Energy 100/100 System Corruption 5% Temperature Cool (0) Movement Core (50) Location -2/Testing Parts ------- > --- POWER (1) -------- (None) > --- PROPULSION (4) --- (None) > --- UTILITY (14) ----- (None) > --- WEAPON (4) ------- (None) > --- INVENTORY (5) ---- Micro Antimatter Reactor Light Quantum Reactor Enhanced Nova Cannon Improved Datajack Peak State ------------ > --- POWER ------------ Light Angular Momentum Engine > --- PROPULSION ------- Medium Treads Biometal Heavy Treads > --- UTILITY ---------- Huge Storage Unit Large Battery 0b10 Decoder Chip [Scout] Advanced Targeting Computer Advanced Targeting Computer Advanced Targeting Computer Core Analyzer Core Analyzer Advanced Kinecellerator Medium Regenerative Plating Heavy Regenerative Plating Graphene Brace System Shield > --- WEAPON ----------- Phase Gun Enhanced Nova Cannon Enhanced Hardcell Cannon > --- INVENTORY -------- Angular Momentum Engine Particle Reactor Micro Antimatter Reactor Light Quantum Reactor Myomer Exoskeleton Wheel Wheel Large Matter Pod Advanced Melee Analysis Suite Experimental Core Analyzer Hardened Medium Armor Plating Centrium Medium Armor Plating SHELL Armor Heavy Plasma Cannon Enhanced Nova Cannon Improved Datajack [Rating: 132] Favorites ----------- Power Heavy Ion Engine Engine Heavy Ion Engine Power Core Neutrino Core Reactor Antimatter Reactor Propulsion Light Treads Treads Light Treads Leg Myomer Exoskeleton Wheel Wheel Utility Advanced Targeting Computer Device Graphene Brace Storage Huge Storage Unit Processor Advanced Targeting Computer Hackware System Shield Protection Hardened Heavy Armor Plating Weapon Great Maul Energy Gun Advanced Beam Rifle Energy Cannon Advanced Beam Cannon Ballistic Gun Advanced KE Penetrator Ballistic Cannon Bore Cannon Launcher Improved Proton Missile Launcher Impact Weapon Great Maul Special Melee Weapon Datajack Build | -11 -10 -9 -8 -8 -7 -7 -7 -6 -6 -6 -6 -6 -5 -5 -5 -4 -3 -2 -2 ------- Run | Yrd Mat Mat Mat Sto Fac Was Fac Fac Ext Cet Arc Hub Fac Upp Upp Fac Res Res Tes Slots Evolved 16 | . . 2 2 . 2 . . 2 . . . . 2 . . 2 2 2 . Power . | . . . . . . . . . . . . . . . . . . . . Propulsion 2 | . . . 2 . . . . . . . . . . . . . . . . Utility 12 | . . 1 . . 2 . . 2 . . . . 1 . . 2 2 2 . Weapon 2 | . . 1 . . . . . . . . . . 1 . . . . . . Parts Attached 135 | 8 . 20 5 24 2 2 2 5 22 2 . 3 6 4 . 3 3 7 17 Power 15 | 1 . 2 . 2 . . . . 3 . . 1 . 2 . . . . 4 Engine 9 | 1 . 2 . 2 . . . . 1 . . . . 2 . . . . 1 Core 1 | . . . . . . . . . 1 . . . . . . . . . . Reactor 5 | . . . . . . . . . 1 . . 1 . . . . . . 3 Propulsion 40 | 3 . 5 3 10 . 2 1 1 6 1 . . 2 1 . . 1 1 3 Treads 32 | 2 . 2 3 10 . . 1 1 6 1 . . 2 1 . . 1 . 2 Leg 1 | . . . . . . . . . . . . . . . . . . . 1 Wheel 7 | 1 . 3 . . . 2 . . . . . . . . . . . 1 . Hover . | . . . . . . . . . . . . . . . . . . . . Flight . | . . . . . . . . . . . . . . . . . . . . Utility 43 | 2 . 6 2 1 2 . . 3 8 . . 2 2 . . 2 1 4 8 Device 10 | 1 . 2 . . 1 . . 1 2 . . 1 . . . 1 . . 1 Storage 5 | 1 . 1 . . . . . 1 . . . . 1 . . . . . 1 Processor 11 | . . 2 . . . . . 1 3 . . . . . . 1 1 1 2 Hackware 2 | . . . . . . . . . 1 . . . . . . . . 1 . Protection 15 | . . 1 2 1 1 . . . 2 . . 1 1 . . . . 2 4 Artifact . | . . . . . . . . . . . . . . . . . . . . Weapon 37 | 2 . 7 . 11 . . 1 1 5 1 . . 2 1 . 1 1 2 2 Energy Gun 7 | 1 . 1 . 2 . . . . . . . . 1 . . 1 . 1 . Energy Cannon 8 | . . 1 . 2 . . 1 1 . . . . . . . . 1 1 1 Ballistic Gun 3 | 1 . 1 . . . . . . . 1 . . . . . . . . . Ballistic Cannon 9 | . . 3 . 2 . . . . 2 . . . 1 . . . . . 1 Launcher 3 | . . . . 2 . . . . . . . . . 1 . . . . . Special Weapon . | . . . . . . . . . . . . . . . . . . . . Impact Weapon 5 | . . 1 . 3 . . . . 1 . . . . . . . . . . Slashing Weapon . | . . . . . . . . . . . . . . . . . . . . Piercing Weapon . | . . . . . . . . . . . . . . . . . . . . Special Melee Weapon 2 | . . . . . . . . . 2 . . . . . . . . . . Unidentified Prototypes 18 | . . 2 . 5 . . . . . 2 . 1 . . . . . 1 7 Corrupted Parts 1 | . . . . 1 . . . . . . . . . . . . . . . System Corruption 2 | . . . . 2 . . . . . . . . . . . . . . . Parts Lost 102 | . . 14 8 9 . . . 3 15 2 . 6 . 6 . . 4 6 29 Power 13 | . . 2 1 . . . . . 3 . . 2 . 1 . . . . 4 Propulsion 37 | . . 5 3 7 . . . 1 6 1 . 2 . 3 . . 1 1 7 Utility 26 | . . 4 1 1 . . . 2 3 . . 1 . . . . . 4 10 Weapon 26 | . . 3 3 1 . . . . 3 1 . 1 . 2 . . 3 1 8 Highest Loss Streak 20 | . . 6 7 3 . . . 3 7 1 . 4 . 3 . . 3 3 20 To Critical Strikes 1 | . . . 1 . . . . . . . . . . . . . . . . Average Backups 17 | 2 5 9 10 14 18 19 23 24 22 21 23 23 18 19 18 17 18 13 13 Power 1 | . 1 . . 1 2 2 3 3 1 . 1 . . . . . 1 2 3 Propulsion 3 | 1 2 1 2 3 4 4 6 6 4 4 6 6 4 3 2 2 2 1 1 Utility 6 | . 2 4 4 5 5 6 6 6 7 7 8 8 8 9 10 8 8 4 3 Weapon 5 | . . 2 2 3 6 6 6 6 8 6 7 7 5 5 5 5 6 3 3 Tool/Special . | . . . . . . . . . . . . . . . . . . . . Unused Backups 11 | . 1 . . 1 . . . . 5 . . 1 . . . 1 . . 2 Power 2 | . 1 . . . . . . . . . . . . . . 1 . . . Propulsion 5 | . . . . . . . . . 4 . . 1 . . . . . . . Utility 2 | . . . . 1 . . . . 1 . . . . . . . . . . Weapon 2 | . . . . . . . . . . . . . . . . . . . 2 Tool/Special . | . . . . . . . . . . . . . . . . . . . . Average Slot Usage (%) 91 | . 100 96 90 91 96 100 92 91 96 93 93 88 80 82 76 83 83 89 86 Engine 5 | . 14 10 8 5 7 7 7 6 3 . . . . 3 5 5 4 4 3 Treads 19 | . 28 15 28 31 30 10 22 19 25 21 20 18 16 15 11 10 9 6 4 Wheel 1 | . . 5 . . . 19 . . . . . . . . . . . 3 7 Device 9 | . 14 13 . 8 5 7 7 12 10 6 6 10 5 5 5 9 9 7 6 Storage 7 | . 14 11 9 9 7 7 7 8 6 6 6 6 5 5 5 5 9 8 8 Processor 16 | . . 4 9 9 7 7 7 10 23 26 26 26 23 23 23 26 27 25 27 Protection 5 | . . 3 7 . 13 15 15 11 . 6 6 . 4 5 5 5 4 10 10 Energy Gun 2 | . 14 . . 4 . . . . . . . . 4 5 5 9 6 1 . Energy Cannon 3 | . . . 8 8 . . 8 12 1 . . . . . . . 1 5 3 Ballistic Gun 2 | . 14 4 8 . . . . . . 4 6 6 5 3 . . . . . Ballistic Cannon 5 | . . 15 . 4 7 7 2 . 8 6 6 4 4 2 . . . 3 3 Launcher 1 | . . . . 1 7 7 2 . . . . . . 2 5 5 3 . 2 Impact Weapon 6 | . . 11 8 8 7 7 7 6 6 6 6 6 5 5 5 5 4 4 2 Peak Build Rating 132 | 7 7 18 23 25 28 29 40 47 58 81 77 81 75 81 54 73 84 95 132 Average Rating 48 | 5 7 14 20 21 26 28 39 44 50 73 77 72 74 70 54 70 77 91 104 On Entrance 44 | . 7 7 17 12 25 27 29 40 47 54 77 77 58 75 54 54 73 79 85 Avg Prop Armor Cover (%) 7 | . . 10 26 25 . 7 . . . . . . . . . . . 4 3 Naked Turns 2 | . . . . . . . . . . . . . . . . . . . 2 Heaviest Build 153 | 14 14 99 103 106 108 108 108 112 117 124 124 124 122 131 124 133 142 153 139 Greatest Support 130 | 40 40 43 80 80 80 80 110 118 118 130 120 120 120 120 40 40 75 55 103 Greatest Overweight (x) 32 | . . 32 10 8 1 3 . 1 2 2 1 1 1 3 3 3 3 7 26 Average Overweight (x) 1 | . . 3 2 1 1 2 . . . . 1 . 1 1 3 3 2 4 3 Largest Inventory Capacity 25 | 8 8 25 25 25 25 25 25 25 25 25 25 25 25 25 25 25 25 25 25 Average Capacity 24 | 7 8 24 25 25 25 25 25 25 25 25 25 25 25 25 25 25 25 25 24 Most Carried 25 | 3 8 12 11 20 20 22 25 25 25 25 24 25 23 21 18 21 20 18 25 Average Carried 17 | 2 6 9 10 14 18 20 23 24 23 22 24 24 18 19 18 17 18 13 15 Final Capacity 25 | 8 8 25 25 25 25 25 25 25 25 25 25 25 25 25 25 25 25 25 5 Final Carried 25 | 3 8 10 10 19 19 22 25 23 20 24 24 24 19 18 18 21 18 12 4 Class Distribution -------------------- 39% | Scavenger-Mutant 28% | Mutant 18% | Scavenger-Gunner 8% | Commander-Mutant 4% | Gunner Dominant Class ---------------- Mutant | -10/Materials Mutant | -9/Materials Mutant | -8/Materials Mutant | -8/Storage Scavenger-Mutant | -7/Factory Scavenger-Mutant | -7/Waste Scavenger-Mutant | -7/Factory Scavenger-Mutant | -6/Factory Scavenger-Mutant | -6/Extension Commander-Mutant | -6/Cetus Scavenger-Mutant | -6/Archives Scavenger-Mutant | -6/Hub_04(d) Scavenger-Gunner | -5/Factory Scavenger-Gunner | -5/Upper Caves Scavenger-Mutant | -5/Upper Caves Scavenger-Gunner | -4/Factory Scavenger-Gunner | -3/Research Gunner | -2/Research Scavenger-Gunner | -2/Testing Resources | -11 -10 -9 -8 -8 -7 -7 -7 -6 -6 -6 -6 -6 -5 -5 -5 -4 -3 -2 -2 ----------- Run | Yrd Mat Mat Mat Sto Fac Was Fac Fac Ext Cet Arc Hub Fac Upp Upp Fac Res Res Tes Matter Collected 4663 | 283 182 660 . 688 . 147 120 45 1093 178 74 59 126 324 . 45 35 384 220 Remotely . | . . . . . . . . . . . . . . . . . . . . Salvage Created 9136 | 96 287 744 333 1447 . . 270 163 2062 250 198 272 280 878 . 162 346 577 771 Parts 389 | 5 26 47 11 56 . . 12 1 80 11 7 6 12 21 . 10 25 30 29 Haulers Intercepted 4 | . . 1 . 1 . . . 1 . . . . 1 . . . . . . Recyclers Shooed 7 | 2 . 2 . 1 . . . . 2 . . . . . . . . . . Parts Field Recycled . | . . . . . . . . . . . . . . . . . . . . Retrieved Matter . | . . . . . . . . . . . . . . . . . . . . Parts Self-Destructed 15 | . . . . . . . . . . . . . . 15 . . . . . Prevented 4 | . . . . . . . . . . . . . . 4 . . . . . Parts Restored . | . . . . . . . . . . . . . . . . . . . . Kills | -11 -10 -9 -8 -8 -7 -7 -7 -6 -6 -6 -6 -6 -5 -5 -5 -4 -3 -2 -2 ------- Run | Yrd Mat Mat Mat Sto Fac Was Fac Fac Ext Cet Arc Hub Fac Upp Upp Fac Res Res Tes Combat Hostiles Destroyed 146 | . 9 22 4 26 . . 4 1 28 3 1 2 2 14 . 5 7 9 9 Melee 7 | . . 4 . 1 . . . . . . . 1 . . . . 1 . . Guns 31 | . 9 1 3 4 . . . . . . . . . 8 . 3 2 . 1 Cannons 84 | . . 15 1 12 . . 3 1 27 3 1 1 2 2 . . 3 7 6 AOE 9 | . . . . . . . 1 . . . . . . 2 . 2 . 2 2 Classes Destroyed 17 | 2 3 3 2 2 . . 2 1 1 . . . . . . . . . 1 Worker 8 | . . 2 . 1 . . 1 . . . . 1 1 . . . . 1 1 Builder 9 | . . . 1 . . . . . 2 . . 1 2 . . . . . 3 Tunneler 1 | 1 . . . . . . . . . . . . . . . . . . . Hauler 4 | . . 1 . 1 . . . 1 . . . . 1 . . . . . . Recycler 10 | 1 . 1 1 2 . . . . 4 . . . . . . . . . 1 Mechanic 1 | . . . . . . . 1 . . . . . . . . . . . . Operator 8 | . . . . 1 . . . . 1 . 4 . 1 . . . . 1 . Watcher 4 | . 2 1 . . . . 1 . . . . . . . . . . . . Swarmer 19 | . 5 5 . . . . 1 . . . . . . . . 4 4 . . Grunt 71 | . 4 11 2 17 . . . . 16 1 . 2 2 10 . . . 3 3 Brawler 2 | . . . . 1 . . . . . . . . . 1 . . . . . Duelist 1 | . . . . . . . . 1 . . . . . . . . . . . Researcher 2 | . . . . . . . . . . . . . . . . . . . 2 Sentry 24 | . . 6 1 6 . . 1 . 6 . 1 . . 1 . . . 2 . Hunter 13 | . . . 1 2 . . 1 . 3 . . . . . . . . . 6 Programmer 11 | . . . . . . . 1 . . . . . . 2 . 1 3 4 . Behemoth 1 | . . . . . . . . . 1 . . . . . . . . . . Cetus Guard 2 | . . . . . . . . . . 2 . . . . . . . . . Thug 2 | . . . . . . . . . 2 . . . . . . . . . . Savage 3 | . . . . . . . . . 1 . . 2 . . . . . . . Guerrilla 1 | . . . . . . . . . . 1 . . . . . . . . . Best Kill Streak 9 | 2 5 6 3 7 . . 2 1 5 2 2 2 5 4 . 4 3 4 9 Combat Bots Only 7 | . 5 4 3 7 . . 1 1 5 2 1 1 2 4 . 4 3 3 5 Max Kills in Single Turn 4 | 1 1 1 1 2 . . 1 1 3 1 1 2 2 1 . 3 1 2 4 Gunslinging . | . . . . . . . . . . . . . . . . . . . . Exploded 2 | . . . . . . . 1 . . . . . . 1 . 2 . 2 1 Melee 1 | . . 1 . 1 . . . . . . . 1 . . . . 1 . . Uniques/NPCs Destroyed . | . . . . . . . . . . . . . . . . . . . . Combat | -11 -10 -9 -8 -8 -7 -7 -7 -6 -6 -6 -6 -6 -5 -5 -5 -4 -3 -2 -2 -------- Run | Yrd Mat Mat Mat Sto Fac Was Fac Fac Ext Cet Arc Hub Fac Upp Upp Fac Res Res Tes Hostile Shots Fired 1756 | . 50 127 145 147 . . 68 20 314 11 2 171 5 88 . 13 40 96 459 Missed 461 | . 13 25 36 33 . . 24 5 101 6 1 57 1 29 . 7 15 22 86 Hits 1295 | . 37 102 109 114 . . 44 15 213 5 1 114 4 59 . 6 25 74 373 Melee 7 | . . . . . . . . 5 2 . . . . . . . . . . Projectile 1288 | . 37 102 109 114 . . 44 10 211 5 1 114 4 59 . 6 25 74 373 AOE 3 | . . . . . . . 1 2 . . . . . . . . . . . Critical Strikes 41 | . . 1 8 6 . . . 3 4 . . 2 . 3 . . . 6 8 Actively Blocked 19 | . . . . . . . . . 2 . . 2 . 3 . . . 6 6 Damage Taken 22541 | . 371 1659 1492 1730 . . 485 438 3022 150 24 1312 76 1179 . 82 567 1746 8208 Core 2854 | . 108 301 104 212 . . 33 49 297 . . 145 20 40 . . 73 170 1302 Absorbed by Shields 128 | . . . . . . . . . 128 . . . . . . . . . . Reduced by Siege Mode 58 | . . . . . . . . . . . . . . . . . . . 58 Redirected to Shielding 112 | . . 17 . . . . 67 28 . . . . . . . . . . . Regen/Repaired (Parts) 1302 | . . . . . . 4 140 72 789 . . . . . . . . . 297 Core Remaining (%) 71 | 100 56 24 . 42 . . 95 . . . . 42 . . 94 100 94 . . Volleys Fired 456 | 5 32 67 27 65 . 7 23 6 84 11 5 4 6 31 . 7 12 30 34 Largest 4 | 2 2 2 2 3 . 2 2 2 2 2 2 2 3 3 . 3 2 3 4 Hottest 296 | 70 70 83 83 151 . 73 148 148 148 85 83 83 144 144 . 192 186 255 296 Shots Fired 914 | 10 64 114 54 135 . 14 40 12 154 21 10 8 18 81 . 15 21 85 58 Gun 271 | 10 64 20 27 31 . . . . . 6 5 4 12 52 . 14 16 6 4 Cannon 595 | . . 94 27 96 . 7 36 12 154 15 5 4 6 17 . . 5 73 44 Launcher 48 | . . . . 8 . 7 4 . . . . . . 12 . 1 . 6 10 Special . | . . . . . . . . . . . . . . . . . . . . Kinetic 490 | 5 32 108 27 34 . 7 10 . 129 19 10 8 12 40 . . . 30 19 Thermal 376 | 5 32 6 27 93 . . 26 12 25 2 . . 6 29 . 14 21 49 29 Explosive 24 | . . . . 8 . . . . . . . . . . . . . 6 10 Electromagnetic 24 | . . . . . . 7 4 . . . . . . 12 . 1 . . . Robot Hit Streak 23 | 4 12 9 19 23 . 9 6 10 12 13 3 7 5 10 . 10 13 18 14 Robot Miss Streak 6 | 2 4 4 3 6 . 5 5 1 4 4 3 3 1 6 . . 2 4 3 Penetration Max 2 | . . . . . . . . . 2 1 . 1 1 1 . . . . . Secondary Targets 2 | . 1 . . . . . . . . . . . . . . . 1 . . Max Gunslinging Chain 1 | . 1 . . . . . . . . . . . . . . . 1 . . Shots Hit Robots 645 | 6 41 74 43 101 . 11 31 11 119 9 10 13 13 50 . 6 20 44 43 Core Hits 340 | 4 17 26 13 50 . 6 19 1 54 16 2 5 9 28 . 6 11 32 41 Critical Kills 40 | . . 2 . 2 . . . . 23 4 1 3 1 3 . . . . 1 Critical Parts Destroyed 51 | . . 3 . 6 . . . . 25 2 6 3 1 4 . . 1 . . Critical Strikes 109 | . 5 8 . 10 . . . . 55 6 7 6 2 7 . . 2 . 1 Burn 8 | . 5 . . 2 . . . . . . . . . . . . 1 . . Meltdown 1 | . . . . 1 . . . . . . . . . . . . . . . Destroy 77 | . . . . . . . . . 53 6 6 4 1 7 . . . . . Blast 3 | . . 3 . . . . . . . . . . . . . . . . . Smash 20 | . . 5 . 7 . . . . 2 . 1 2 1 . . . 1 . 1 Melee Attacks 208 | . . 46 1 32 4 . 5 5 54 . 5 11 5 . . 14 13 7 6 Impact 175 | . . 46 1 32 4 . 5 5 21 . 5 11 5 . . 14 13 7 6 Slashing . | . . . . . . . . . . . . . . . . . . . . Piercing . | . . . . . . . . . . . . . . . . . . . . Sneak Attacks 56 | . . 5 . 5 . . 1 1 33 . 4 2 2 . . . . . 3 Combat Hostiles . | . . . . . . . . . . . . . . . . . . . . Follow-up Attacks . | . . . . . . . . . . . . . . . . . . . . Damage Inflicted 18821 | 62 437 1896 674 2539 . 181 920 323 2680 298 503 599 573 1581 . 201 701 1975 2678 Guns 3112 | 61 437 55 292 380 . . . . . 47 51 106 204 922 . 144 336 . 77 Cannons 9695 | . . 1221 382 1251 . 170 552 231 2428 251 113 59 149 92 . . 205 1517 1074 Explosions 2436 | . . . . 34 . 11 176 . . . . . . 567 . 57 . 416 1175 Melee 3577 | . . 620 . 874 . . 192 92 252 . 339 434 220 . . . 160 42 352 Ramming 1 | 1 . . . . . . . . . . . . . . . . . . . Kinetic 6851 | 25 149 1223 292 502 . 170 140 . 1996 247 164 165 253 644 . . . 380 501 Thermal 6005 | 36 288 53 382 1129 . . 412 231 432 51 . . 100 419 . 144 541 1137 650 Explosive 1625 | . . . . 34 . . . . . . . . . . . . . 416 1175 Electromagnetic 762 | . . . . . . 11 176 . . . . . . 518 . 57 . . . Impact 3577 | . . 620 . 874 . . 192 92 252 . 339 434 220 . . . 160 42 352 Slashing . | . . . . . . . . . . . . . . . . . . . . Piercing . | . . . . . . . . . . . . . . . . . . . . Highest Corruption 14 | . . 14 . 2 . . . . 7 3 3 3 . 3 3 . 4 5 5 Average Corruption 3 | . . 5 . 2 . . . . 4 3 3 3 . 2 3 . 3 4 5 Corruption Purged 5 | . . . . . . . . . 5 . . . . . . . . . . Corruption Blocked . | . . . . . . . . . . . . . . . . . . . . Effects 103 | . . 33 . 8 . . . . 3 10 6 4 . 18 . . 2 6 13 Message Errors 25 | . . 8 . 2 . . . . . 3 3 1 . 4 . . . 1 3 Matter Fused 27 | . . 11 . 2 . . . . . 3 2 . . 4 . . 1 . 4 Heat Flow Errors 13 | . . 4 . 1 . . . . 1 . . 1 . 2 . . 1 1 2 Energy Discharges 10 | . . 3 . 2 . . . . 1 1 . 1 . . . . . 1 1 Parts Rejected 3 | . . 1 . . . . . . . . . . . . . . . 1 1 Data Loss (minor) 9 | . . 1 . 1 . . . . . 2 1 1 . 1 . . . 1 1 Data Loss (major) 5 | . . 1 . . . . . . . . . . . 3 . . . 1 . Misfires 4 | . . 2 . . . . . . 1 1 . . . . . . . . . Alerts 2 | . . 2 . . . . . . . . . . . . . . . . . Weapon Failures 5 | . . . . . . . . . . . . . . 4 . . . . 1 Overload Shots . | . . . . . . . . . . . . . . . . . . . . Overflow Damage 1871 | . . 189 . 382 . . 123 68 201 . 186 170 205 3 . . 76 17 251 Projectiles 45 | . . 15 . . . . . . 13 . . . . . . . . 17 . Explosions 46 | . . . . . . . . . . . . . . 3 . . . . 43 Melee 1780 | . . 174 . 382 . . 123 68 188 . 186 170 205 . . . 76 . 208 Knockbacks 56 | . . 13 . 11 . . 2 . 9 . 3 1 . 1 . . . 2 14 Impact 12 | . . 3 . 2 . . 1 . 1 . 2 1 . . . . . . 2 Kinetic 39 | . . 9 . 6 . . 1 . 8 . 1 . . 1 . . . 2 11 Secondary 5 | . . 1 . 3 . . . . . . . . . . . . . . 1 Self-Inflicted Damage 86 | . . . . 37 . . . . . . . . . . . . . . 49 Shots 4 | . . . . 2 . . . . . . . . . . . . . . 2 Rammed 1 | 1 . . . . . . . . . . . . . . . . . . . Targets Rammed 1 | 1 . . . . . . . . . . . . . . . . . . . Kicked . | . . . . . . . . . . . . . . . . . . . . Crushed . | . . . . . . . . . . . . . . . . . . . . Highest Temperature 596 | 40 160 229 477 268 . . 138 99 189 68 33 132 246 392 . 226 481 512 596 Average Temperature 119 | 20 67 33 147 108 . . 40 46 67 23 14 55 125 133 . 105 179 211 209 Received Heat Transfer 4949 | . 99 465 720 963 . . 117 108 998 . 9 525 36 378 . . . 225 306 Effects 29 | . . . 1 . . . . . . . . . . 3 . . 1 11 13 Shutdowns 7 | . . . 1 . . . . . . . . . . 1 . . 1 2 2 Energy Bleed 7 | . . . . . . . . . . . . . . 2 . . . 4 1 Interference 5 | . . . . . . . . . . . . . . . . . . 2 3 Matter Decay 2 | . . . . . . . . . . . . . . . . . . 1 1 Short Circuit 2 | . . . . . . . . . . . . . . . . . . 1 1 Damage (minor) 1 | . . . . . . . . . . . . . . . . . . 1 . Damage (major) 4 | . . . . . . . . . . . . . . . . . . . 4 Damage (core) 1 | . . . . . . . . . . . . . . . . . . . 1 Siege Activations 1 | . . . . . . . . . . . . . . . . . . . 1 Total Turns 14 | . . . . . . . . . . . . . . . . . . . 14 Longest Duration 14 | . . . . . . . . . . . . . . . . . . . 14 Martial Activations . | . . . . . . . . . . . . . . . . . . . . Shielding Activations . | . . . . . . . . . . . . . . . . . . . . Robots Disrupted . | . . . . . . . . . . . . . . . . . . . . Combat Hostiles . | . . . . . . . . . . . . . . . . . . . . Robots Corrupted 20 | . . 1 . 7 . . 1 . 3 . 3 . . 2 . . 1 . 2 Combat Hostiles 11 | . . 1 . 6 . . . . 1 . . . . 2 . . 1 . . Parts Fried 38 | . . 2 . 8 . . . . 5 . 9 6 2 3 . . 2 . 1 Impact Corruptions 59 | . . 8 . 15 . . 4 1 7 . 6 4 5 . . . 3 . 6 Robots Melted 3 | . . . . 3 . . . . . . . . . . . . . . . Combat Hostiles 3 | . . . . 3 . . . . . . . . . . . . . . . Parts Melted 15 | . 1 . 1 4 . . . . 1 . . . . 1 . . 4 2 1 Heat Transferred 10987 | 111 1221 111 814 2331 . . 772 435 833 100 . . 185 766 . 222 768 1307 1011 Parts Sabotaged . | . . . . . . . . . . . . . . . . . . . . Parts Stolen . | . . . . . . . . . . . . . . . . . . . . Parts Stripped . | . . . . . . . . . . . . . . . . . . . . Power Chain Reactions 1 | . . . . . . . . . . . . . . 1 . . . . . Alert | -11 -10 -9 -8 -8 -7 -7 -7 -6 -6 -6 -6 -6 -5 -5 -5 -4 -3 -2 -2 ------- Run | Yrd Mat Mat Mat Sto Fac Was Fac Fac Ext Cet Arc Hub Fac Upp Upp Fac Res Res Tes Maximum Alert Level 3 | . . . . . . . 1 . 3 3 1 . . . . . . . 1 Low Security (%) 80 | 100 100 100 100 100 100 100 74 100 43 . 27 100 100 . . 100 100 100 93 Level 1 11 | . . . . . . . 25 . 34 3 72 . . . . . . . 6 Level 2 6 | . . . . . . . . . 20 77 . . . . . . . . . Level 3 . | . . . . . . . . . 1 18 . . . . . . . . . Level 4 . | . . . . . . . . . . . . . . . . . . . . Level 5 . | . . . . . . . . . . . . . . . . . . . . High Security . | . . . . . . . . . . . . . . . . . . . . Max Security . | . . . . . . . . . . . . . . . . . . . . Peak Influence 734 | 5 146 186 70 195 84 17 302 88 734 733 288 108 53 . . 84 84 188 283 Initial 408 | . . 34 44 . 84 . . 88 12 408 278 51 . . . . 2 20 101 Average 115 | 1 80 73 30 59 24 4 134 17 242 564 227 53 11 . . 14 20 37 102 Influence Increases 6778 | 10 273 667 151 786 4 59 773 97 1445 585 168 134 83 325 . 177 168 378 495 Destroy 0b10 Robot/C 3840 | . 180 440 80 540 . . 300 40 900 240 80 80 40 280 . 100 140 180 220 Destroy 0b10 Robot/NC 285 | 10 10 25 10 25 . . 35 20 55 5 20 10 25 . . . . 10 25 Destroy Leader 734 | . 44 134 30 112 . . 104 14 94 30 . 20 2 30 . 20 20 50 30 Allied During Kill 867 | . . . . 2 . . 206 8 308 273 50 20 . . . . . . . Successful Hack 79 | . 9 5 . 7 . . . 5 21 11 . . . . . 14 . . 7 Disable Machine 285 | . . . . 60 . . 90 . . 15 15 . . . . . . . 105 Destroy Structure 538 | . . 33 1 25 4 59 38 10 52 11 3 4 16 . . 28 8 138 108 Partial Spotted 15 | . . . . . . . . . . . . . . . . 15 . . . Lose Combat Pursuer 135 | . 30 30 30 15 . . . . 15 . . . . 15 . . . . . Influence Decreases 6694 | 10 190 645 256 599 191 59 593 250 742 620 715 282 50 335 23 172 137 234 591 Entered New Map 1272 | . . 49 61 . 103 . . 92 15 322 417 97 . 13 5 . 3 16 79 Time Decay 4012 | 10 190 466 141 469 88 59 453 133 514 198 198 110 50 262 18 172 94 165 222 Lost Part 920 | . . 130 54 90 . . . 25 123 20 . 35 . 60 . . 40 53 290 Lost Ally 490 | . . . . 40 . . 140 . 90 80 100 40 . . . . . . . Squads Dispatched 46 | . 1 3 1 6 . . 6 1 7 3 . 3 2 . . 3 1 2 7 Investigation 15 | . . 1 . 2 . . 2 . 5 3 . 2 . . . . . . . Extermination 9 | . . . . . . . 2 1 . . . . 1 . . 2 1 2 . Reinforcement 18 | . 1 2 1 2 . . 2 . 1 . . . 1 . . 1 . . 7 Assault 3 | . . . . 2 . . . . 1 . . . . . . . . . . Garrison 1 | . . . . . . . . . . . . 1 . . . . . . . Intercept . | . . . . . . . . . . . . . . . . . . . . Searches Triggered . | . . . . . . . . . . . . . . . . . . . . Construction Impeded 4 | . . . . . . . 1 . 1 . . . . . . . . . 2 Haulers Reinforced 1 | . . . . . . . . . . . . . 1 . . . . . . Active Scanning Responses . | . . . . . . . . . . . . . . . . . . . . Cargo Convoy Interrupts . | . . . . . . . . . . . . . . . . . . . . Stealth | -11 -10 -9 -8 -8 -7 -7 -7 -6 -6 -6 -6 -6 -5 -5 -5 -4 -3 -2 -2 --------- Run | Yrd Mat Mat Mat Sto Fac Was Fac Fac Ext Cet Arc Hub Fac Upp Upp Fac Res Res Tes Distress Signals 11 | . 1 3 1 1 . . . 1 3 1 . . . . . . . . . Communications Jammed . | . . . . . . . . . . . . . . . . . . . . Distress Signals . | . . . . . . . . . . . . . . . . . . . . Times Spotted 265 | . 17 34 14 33 . 3 14 7 51 11 6 9 3 15 . 7 8 12 21 Peak Tracking Total 8 | . 7 5 7 8 . 2 2 4 6 5 1 5 2 5 . 4 4 5 8 Tactical Retreats 6 | . 1 1 1 1 . . . . 1 . . . . 1 . . . . . Traps | -11 -10 -9 -8 -8 -7 -7 -7 -6 -6 -6 -6 -6 -5 -5 -5 -4 -3 -2 -2 ------- Run | Yrd Mat Mat Mat Sto Fac Was Fac Fac Ext Cet Arc Hub Fac Upp Upp Fac Res Res Tes Traps Triggered 9 | . . 1 . . 1 . . 1 6 . . . . . . . . . . Indirectly . | . . . . . . . . . . . . . . . . . . . . Trap Hack Attempts . | . . . . . . . . . . . . . . . . . . . . Triggered . | . . . . . . . . . . . . . . . . . . . . Disarmed . | . . . . . . . . . . . . . . . . . . . . Reprogrammed . | . . . . . . . . . . . . . . . . . . . . Reused . | . . . . . . . . . . . . . . . . . . . . Traps Extracted . | . . . . . . . . . . . . . . . . . . . . Installed . | . . . . . . . . . . . . . . . . . . . . Triggered . | . . . . . . . . . . . . . . . . . . . . Machines | -11 -10 -9 -8 -8 -7 -7 -7 -6 -6 -6 -6 -6 -5 -5 -5 -4 -3 -2 -2 ---------- Run | Yrd Mat Mat Mat Sto Fac Was Fac Fac Ext Cet Arc Hub Fac Upp Upp Fac Res Res Tes Machines Disabled 21 | . . . . 4 . . 6 . . 3 1 . . . . . . . 7 Max in Single Turn 2 | . . . . 1 . . 1 . . 1 . . . . . . . . 2 Garrison Access 1 | . . . . 1 . . . . . . . . . . . . . . . Machines Repaired . | . . . . . . . . . . . . . . . . . . . . Machines Dismantled . | . . . . . . . . . . . . . . . . . . . . Machines Sabotaged . | . . . . . . . . . . . . . . . . . . . . Overloaded Fab Kills . | . . . . . . . . . . . . . . . . . . . . Hacking | -11 -10 -9 -8 -8 -7 -7 -7 -6 -6 -6 -6 -6 -5 -5 -5 -4 -3 -2 -2 --------- Run | Yrd Mat Mat Mat Sto Fac Was Fac Fac Ext Cet Arc Hub Fac Upp Upp Fac Res Res Tes Machines Accessed 41 | . 3 6 1 6 . . 2 2 11 3 1 2 . . . 2 1 . 1 Terminals 32 | . 3 4 1 5 . . 1 . 11 3 . 1 . . . 2 . . 1 Fabricators 2 | . . . . . . . . 2 . . . . . . . . . . . Repair Stations . | . . . . . . . . . . . . . . . . . . . . Recycling Units . | . . . . . . . . . . . . . . . . . . . . Scanalyzers 4 | . . 2 . . . . 1 . . . . . . . . . 1 . . Garrison Access 2 | . . . . 1 . . . . . . . 1 . . . . . . . Total Hacks 85 | . 6 10 1 10 . . 4 2 27 11 1 5 . . . 3 1 . 4 Successful 31 | . 3 6 1 3 . . . 2 9 2 1 . . . . 2 1 . 1 Failed 54 | . 3 4 . 7 . . 4 . 18 9 . 5 . . . 1 . . 3 Catastrophic 10 | . . . . 3 . . 1 . 2 3 . 1 . . . . . . . Database Lockouts . | . . . . . . . . . . . . . . . . . . . . Manual 29 | . 6 7 1 6 . . 3 . 2 1 . . . . . 3 . . . Terminals 72 | . 6 7 1 9 . . 2 . 27 11 . 2 . . . 3 . . 4 Fabricators 2 | . . . . . . . . 2 . . . . . . . . . . . Repair Stations . | . . . . . . . . . . . . . . . . . . . . Recycling Units . | . . . . . . . . . . . . . . . . . . . . Scanalyzers 6 | . . 3 . . . . 2 . . . . . . . . . 1 . . Garrison Access 4 | . . . . 1 . . . . . . . 3 . . . . . . . Terminal Hacks 15 | . . . . 2 . . . . 9 2 1 . . . . . . . 1 Record 5 | . . . . . . . . . 2 2 1 . . . . . . . . Part Schematic 1 | . . . . . . . . . 1 . . . . . . . . . . Open Door 7 | . . . . 2 . . . . 4 . . . . . . . . . 1 Branch Access Points 1 | . . . . . . . . . 1 . . . . . . . . . . Locate Traps 1 | . . . . . . . . . 1 . . . . . . . . . . Fabricator Hacks 2 | . . . . . . . . 2 . . . . . . . . . . . Network Status 1 | . . . . . . . . 1 . . . . . . . . . . . Build 1 | . . . . . . . . 1 . . . . . . . . . . . Repair Station Hacks . | . . . . . . . . . . . . . . . . . . . . Recycling Unit Hacks . | . . . . . . . . . . . . . . . . . . . . Scanalyzer 4 | . . 3 . . . . . . . . . . . . . . 1 . . Retrieve Study 4 | . . 3 . . . . . . . . . . . . . . 1 . . Garrison Access Hacks 1 | . . . . 1 . . . . . . . . . . . . . . . Seal Access 1 | . . . . 1 . . . . . . . . . . . . . . . Unauthorized Hacks 9 | . 3 3 1 . . . . . . . . . . . . 2 . . . Terminals 9 | . 3 3 1 . . . . . . . . . . . . 2 . . . Botnet 9 | . 3 3 1 . . . . . . . . . . . . 2 . . . Fabricators . | . . . . . . . . . . . . . . . . . . . . Repair Stations . | . . . . . . . . . . . . . . . . . . . . Recycling Units . | . . . . . . . . . . . . . . . . . . . . Scanalyzers . | . . . . . . . . . . . . . . . . . . . . Garrison Access . | . . . . . . . . . . . . . . . . . . . . Data Cores Recovered 2 | . . . . . . . . . . . . . 1 . . . . 1 . Used . | . . . . . . . . . . . . . . . . . . . . Hacking Detections 27 | . . 4 . 4 . . 2 1 8 3 . 2 . . . 1 1 . 1 Full Trace Events 14 | . . . . 2 . . 2 . 5 3 . 2 . . . . . . . Feedback Events . | . . . . . . . . . . . . . . . . . . . . Feedback Blocked . | . . . . . . . . . . . . . . . . . . . . Robot Schematics Acquired 1 | . . . . . . . . . . . . . . . . . . . 1 Robots Built . | . . . . . . . . . . . . . . . . . . . . Authchips . | . . . . . . . . . . . . . . . . . . . . Time . | . . . . . . . . . . . . . . . . . . . . Total Robot Build Rating . | . . . . . . . . . . . . . . . . . . . . Part Schematics Acquired 3 | . . . . . . . . . 1 . . . . . . . . . 2 Parts Built 2 | . . . . . . . . 2 . . . . . . . . . . . Authchips . | . . . . . . . . . . . . . . . . . . . . Time 117 | . . . . . . . . 117 . . . . . . . . . . . Total Part Build Rating 14 | . . . . . . . . 14 . . . . . . . . . . . Part Studies Acquired 4 | . . 3 . . . . . . . . . . . . . . 1 . . Parts Repaired . | . . . . . . . . . . . . . . . . . . . . Time . | . . . . . . . . . . . . . . . . . . . . Parts Recycled . | . . . . . . . . . . . . . . . . . . . . Recycled Matter . | . . . . . . . . . . . . . . . . . . . . Retrieved Matter . | . . . . . . . . . . . . . . . . . . . . Retrieved Components . | . . . . . . . . . . . . . . . . . . . . Parts Scanalyzed . | . . . . . . . . . . . . . . . . . . . . Part Schematics Acquired . | . . . . . . . . . . . . . . . . . . . . Parts Damaged . | . . . . . . . . . . . . . . . . . . . . Bothacking | -11 -10 -9 -8 -8 -7 -7 -7 -6 -6 -6 -6 -6 -5 -5 -5 -4 -3 -2 -2 ------------ Run | Yrd Mat Mat Mat Sto Fac Was Fac Fac Ext Cet Arc Hub Fac Upp Upp Fac Res Res Tes Used RIF Installer . | . . . . . . . . . . . . . . . . . . . . Robots Hacked . | . . . . . . . . . . . . . . . . . . . . Non-combat . | . . . . . . . . . . . . . . . . . . . . Combat . | . . . . . . . . . . . . . . . . . . . . Robot Hacks Applied . | . . . . . . . . . . . . . . . . . . . . Relay Couplers Released . | . . . . . . . . . . . . . . . . . . . . Fabnet Peak Effective % . | . . . . . . . . . . . . . . . . . . . . Robots Rewired 19 | . . . . . . . . . 19 . . . . . . . . . . Allies Hacked 1 | . . . . . . . 1 . . . . . . . . . . . . Hacks Repelled . | . . . . . . . . . . . . . . . . . . . . Allies | -11 -10 -9 -8 -8 -7 -7 -7 -6 -6 -6 -6 -6 -5 -5 -5 -4 -3 -2 -2 -------- Run | Yrd Mat Mat Mat Sto Fac Was Fac Fac Ext Cet Arc Hub Fac Upp Upp Fac Res Res Tes Total Allies 46 | . . . . 2 . 19 . . 25 . . . . . . . . . . Largest Group 19 | . . . . 2 . 19 12 3 18 18 10 4 . . . . . . . Highest-Rated Group 506 | . . . . 62 . 475 360 83 506 506 251 102 . . . . . . . Highest-Rated Ally 159 | . . . . 31 . 35 35 29 159 39 31 31 . . . . . . . Total Orders . | . . . . . . . . . . . . . . . . . . . . Ally Attacks 477 | . . . . 8 . 94 92 3 124 82 45 29 . . . . . . . Total Damage 11251 | . . . . 168 . 3345 1998 377 2641 1314 877 531 . . . . . . . Kills 72 | . . . . 1 . 11 16 4 22 12 4 2 . . . . . . . Allies Corrupted 2 | . . . . . . . . 1 1 . . . . . . . . . . Allies Melted . | . . . . . . . . . . . . . . . . . . . . Intel | -11 -10 -9 -8 -8 -7 -7 -7 -6 -6 -6 -6 -6 -5 -5 -5 -4 -3 -2 -2 ------- Run | Yrd Mat Mat Mat Sto Fac Was Fac Fac Ext Cet Arc Hub Fac Upp Upp Fac Res Res Tes Active Infowar (turns) 4223 | 40 494 1042 . . . . . . . . . 166 . . . 883 402 728 468 Structural 1041 | . . 1041 . . . . . . . . . . . . . . . . . Traps 1893 | . . . . . . . . . . . . . . . . 882 402 609 . Seismic 1714 | 40 494 1014 . . . . . . . . . 166 . . . . . . . Decoding 2458 | . . . . . . . . . . . . . . . . 883 402 705 468 Robot Analysis Total . | . . . . . . . . . . . . . . . . . . . . Derelict Logs Recovered 1 | . . . . . . . . . . . . . . 1 . . . . . Drone Launches . | . . . . . . . . . . . . . . . . . . . . Drone Recoveries . | . . . . . . . . . . . . . . . . . . . . Decoded 0b10 Intel 34 | . . . . . . . . . . . . . . . . 13 9 7 5 Traps 19 | . . . . . . . . . . . . . . . . 8 7 2 2 Emergency Access 13 | . . . . . . . . . . . . . . . . 4 2 4 3 Exits 2 | . . . . . . . . . . . . . . . . 1 . 1 . Exploration | -11 -10 -9 -8 -8 -7 -7 -7 -6 -6 -6 -6 -6 -5 -5 -5 -4 -3 -2 -2 ------------- Run | Yrd Mat Mat Mat Sto Fac Was Fac Fac Ext Cet Arc Hub Fac Upp Upp Fac Res Res Tes Turns Passed 14088 | 96 494 1755 320 1511 332 191 1256 682 2521 409 414 255 292 1026 51 883 402 728 470 Spaces Moved 5705 | 46 247 608 102 545 159 92 713 294 1035 178 164 116 112 394 19 287 122 280 192 Core 8 | 6 . 2 . . . . . . . . . . . . . . . . . Treads 4969 | 40 247 346 88 501 159 10 713 294 1035 178 164 116 112 394 19 287 122 127 17 Legs 26 | . . . . . . . . . . . . . . . . . . . 26 Wheels 702 | . . 260 14 44 . 82 . . . . . . . . . . . 153 149 Hover . | . . . . . . . . . . . . . . . . . . . . Flight . | . . . . . . . . . . . . . . . . . . . . Fastest Speed 50 | 50 160 130 185 200 200 125 160 160 160 160 213 160 213 213 280 280 208 130 130 Average Speed 201 | 145 160 222 216 209 200 133 160 182 204 189 213 177 213 227 280 280 268 208 143 Slowest Speed 1650 | 160 160 1650 240 285 200 200 160 240 280 280 213 240 213 280 280 280 280 272 232 Overloaded Moves . | . . . . . . . . . . . . . . . . . . . . Propulsion Burnouts . | . . . . . . . . . . . . . . . . . . . . Robots Hopped 2 | . . . . . . . . . . 2 . . . . . . . . . Potential Cave-ins 4 | . . . . . . . . . 4 . . . . . . . . . . Cave-ins Triggered 1 | . . 1 . . . . . . . . . . . . . . . . . Exploration Rate (%) 32 | 3 49 57 14 58 6 70 23 8 69 63 98 12 5 59 4 8 2 10 28 Regions Visited 19 Branch Regions 8 Pre-discovered Areas . | . . . . . . . . . . . . . . . . . . . . Known Exits Taken 4 | . . . . . . . . . 1 . . . . 1 . 1 . 1 . Unknown Exits Taken 13 | 1 1 1 1 1 . . 1 1 . 1 1 1 1 . 1 . 1 . . Scrap Searched 2 | . . . . . . . . . . . . . . 2 . . . . . Spaces Dug 61 | . . 17 1 2 4 . 1 . 7 1 . 1 3 . . 15 3 4 2 Terrain Destroyed 303 | . . 32 1 29 4 . 1 . 57 4 4 4 12 25 . 15 3 70 42 Melee 50 | . . 9 1 2 4 . 1 . 7 . . 1 3 . . 13 3 4 2 Projectile 133 | . . 23 . 1 . . . . 49 4 4 3 9 15 . 2 . 20 3 AOE 119 | . . . . 26 . . . . . . . . . 10 . . . 46 37 Terrain Rammed . | . . . . . . . . . . . . . . . . . . . . Walls Destroyed . | . . . . . . . . . . . . . . . . . . . . Machines Disabled . | . . . . . . . . . . . . . . . . . . . . Actions | -11 -10 -9 -8 -8 -7 -7 -7 -6 -6 -6 -6 -6 -5 -5 -5 -4 -3 -2 -2 --------- Run | Yrd Mat Mat Mat Sto Fac Was Fac Fac Ext Cet Arc Hub Fac Upp Upp Fac Res Res Tes Total 7143 | 62 289 818 144 715 169 145 784 423 1249 229 209 136 143 452 18 325 153 348 332 Wait 438 | . 4 50 8 24 . 42 30 105 25 30 36 . 13 21 . 8 1 7 34 Move 5684 | 45 246 607 101 544 159 91 712 293 1034 174 163 115 111 393 18 286 121 279 192 Hop 1 | . . . . . . . . . . 1 . . . . . . . . . Pick Up 109 | 2 6 17 1 16 3 2 5 4 16 6 . 2 1 2 . 6 1 6 13 Fast Attach 37 | 8 . 6 2 11 . . . . 4 . . . . 2 . 1 1 2 . Attach 102 | . . 15 2 7 2 . 2 5 14 4 . 1 5 3 . 2 4 12 24 Detach 18 | 1 . 2 . 3 . . 3 . . 2 . . . . . . . 2 5 Swap 37 | . . 3 2 9 . 3 2 1 7 1 . 2 1 . . . . 2 4 Drop 31 | . 1 5 . 4 1 . 2 1 9 . . 1 1 . . 1 . 1 4 Fire 456 | 5 32 67 27 65 . 7 23 6 84 11 5 4 6 31 . 7 12 30 34 Melee 208 | . . 46 1 32 4 . 5 5 54 . 5 11 5 . . 14 13 7 6 Ram . | . . . . . . . . . . . . . . . . . . . . Kick . | . . . . . . . . . . . . . . . . . . . . Crush 1 | 1 . . . . . . . . . . . . . . . . . . . Escape Stasis 20 | . . . . . . . . 2 2 . . . . . . . . . 16 Rewire 1 | . . . . . . . . 1 . . . . . . . . . . . Trap . | . . . . . . . . . . . . . . . . . . . . Miscellaneous . | . . . . . . . . . . . . . . . . . . . . Route ------- -11/Scrapyard -10/Materials -9/Materials (discovered 2 exits: *Mat / [*Min]) -8/Materials -8/Storage -7/Factory -7/Waste -7/Factory (discovered 2 exits: *Fac / [*Low]) -6/Factory -6/Extension (discovered 2 exits: [*Fac] / *Cet) -6/Cetus -6/Archives (discovered 3 exits: [*Fac] / *Hub x2) -6/Hub_04(d) (discovered 2 exits: [*Fac x2]) -5/Factory -5/Upper Caves -5/Upper Caves -4/Factory -3/Research -2/Research -2/Testing History --------- Turn | Location | Event 11 | -11/Scrapyard | Discovered new exit (range 15) 97 | -11/Scrapyard | Entered Materials 317 | -10/Materials | Build established: Mutant 483 | -10/Materials | Discovered new exit (range 7) 591 | -10/Materials | Entered another Materials area 591 | -9/Materials | Evolved 2 slots: Utility x1, Weapon x1 1472 | -9/Materials | Discovered new exit (range 16) 1664 | -9/Materials | Lost 6 parts (1p2n2u1w) 2224 | -9/Materials | Core integrity fell below 50% 2228 | -9/Materials | Crushed by falling debris 2228 | -9/Materials | System corruption reached 10% 2259 | -9/Materials | Lost 3 parts (2u1w) 2307 | -9/Materials | Discovered new exit (range 16) 2346 | -9/Materials | Entered another Materials area 2346 | -8/Materials | Evolved 2 slots: Propulsion x2 2601 | -8/Materials | Discovered new exit (range 16) 2666 | -8/Materials | Entered Storage 2690 | -8/Storage | Lost 7 parts (1p2n1u3w) 3760 | -8/Storage | Build established: Scavenger-Mutant 4024 | -8/Storage | Discovered new exit (range 16) 4062 | -8/Storage | Met a pair of Derelict thieves 4110 | -8/Storage | Core integrity fell below 50% 4158 | -8/Storage | Destroyed 7 combat bots 4164 | -8/Storage | Lost 3 parts (2n1u) 4177 | -8/Storage | Entered Factory 4177 | -7/Factory | Evolved 2 slots: Utility x2 4509 | -7/Factory | Sucked down chute 4509 | -7/Factory | Entered Waste 4527 | -7/Waste | Spotted C-40 Crusher 4535 | -7/Waste | Spotted C-40 Crusher 4542 | -7/Waste | Warlord forces began an assault 4571 | -7/Waste | Spotted C-40 Crusher 4576 | -7/Waste | Allies destroyed C-40 Crusher 4594 | -7/Waste | Spotted C-40 Crusher 4602 | -7/Waste | Lost 5 allies 4602 | -7/Waste | Allies destroyed C-40 Crusher 4604 | -7/Waste | Spotted C-40 Crusher 4614 | -7/Waste | Allies destroyed C-40 Crusher 4635 | -7/Waste | Spotted C-40 Crusher 4649 | -7/Waste | Allies destroyed C-40 Crusher 4661 | -7/Waste | Discovered new exit (range 15) 4700 | -7/Waste | Entered Factory 4700 | -7/Factory | Accompanied by 12 allies 5883 | -7/Factory | Discovered new exit (range 15) 5920 | -7/Factory | Discovered new exit (range 16) 5956 | -7/Factory | Entered another Factory area 5956 | -6/Factory | Accompanied by 3 allies 5956 | -6/Factory | Evolved 2 slots: Utility x2 6454 | -6/Factory | Fabricated Graphene Brace (x2) 6603 | -6/Factory | Discovered new exit (range 16) 6611 | -6/Factory | Lost 3 parts (1n2u) 6638 | -6/Factory | Entered Extension 6638 | -6/Extension | Accompanied by 2 allies 6711 | -6/Extension | Rescued a captive Derelict 6877 | -6/Extension | Build established: Mutant 6931 | -6/Extension | Lost 7 parts (2p3n2w) 7194 | -6/Extension | Build established: Scavenger-Mutant 7275 | -6/Extension | Rescued a captive Derelict 7277 | -6/Extension | Rescued a captive Derelict 7498 | -6/Extension | Identified exit to Cetus 7725 | -6/Extension | Rescued A7 7759 | -6/Extension | Spotted B-75 Beast 7795 | -6/Extension | Destroyed B-75 Beast 7800 | -6/Extension | Spotted B-75 Beast 7840 | -6/Extension | Allies destroyed B-75 Beast 8725 | -6/Extension | Build established: Commander-Mutant 8748 | -6/Extension | Extracted ID and sensor layout for unrecognized location from A7's data core 9011 | -6/Extension | Rescued a captive Derelict 9013 | -6/Extension | Rescued a captive Derelict 9077 | -6/Extension | Discovered new exit (range 10) 9088 | -6/Extension | First assault squad dispatched 9134 | -6/Extension | Lost 3 parts (1p1n1w) 9159 | -6/Extension | Entered Cetus 9159 | -6/Cetus | Accompanied by 18 allies 9186 | -6/Cetus | Spotted Cetus Guard 9186 | -6/Cetus | Spotted Cetus Guard 9191 | -6/Cetus | Spotted Cetus Guard 9193 | -6/Cetus | Destroyed Cetus Guard 9193 | -6/Cetus | Spotted Cetus Guard 9196 | -6/Cetus | Destroyed Cetus Guard 9196 | -6/Cetus | Allies destroyed Cetus Guard 9200 | -6/Cetus | Allies destroyed Cetus Guard 9443 | -6/Cetus | Lost 4 allies 9490 | -6/Cetus | Discovered new exit (range 16) 9568 | -6/Cetus | Entered Archives 9568 | -6/Archives | Accompanied by 10 allies 9640 | -6/Archives | Unable to access archive contents 9663 | -6/Archives | Discovered new exit (range 16) 9674 | -6/Archives | Unable to access archive contents 9677 | -6/Archives | Lost 5 allies 9702 | -6/Archives | Discovered new exit (range 15) 9826 | -6/Archives | Discovered new exit (range 15) 9915 | -6/Archives | Build established: Scavenger-Mutant 9982 | -6/Archives | Entered Hub_04(d) 9982 | -6/Hub_04(d) | Accompanied by 4 allies 9982 | -6/Hub_04(d) | Discovered new exit (range 10) 10103 | -6/Hub_04(d) | Discovered new exit (range 15) 10161 | -6/Hub_04(d) | Garrison activated, responded to threat 10196 | -6/Hub_04(d) | Core integrity fell below 50% 10218 | -6/Hub_04(d) | Lost 4 parts (1p1n1u1w) 10237 | -6/Hub_04(d) | Entered Factory 10237 | -5/Factory | Evolved 2 slots: Utility x1, Weapon x1 10443 | -5/Factory | Discovered new exit (range 11) 10524 | -5/Factory | Build established: Scavenger-Gunner 10529 | -5/Factory | Entered Upper Caves 11091 | -5/Upper Caves | Attracted the attention of an 0b10 checkpoint 11298 | -5/Upper Caves | Identified exit to Upper Caves 11304 | -5/Upper Caves | Lost 3 parts (2n1w) 11555 | -5/Upper Caves | Entered another Upper Caves area 11595 | -5/Upper Caves | Build established: Scavenger-Mutant 11595 | -5/Upper Caves | Discovered new exit (range 4) 11606 | -5/Upper Caves | Entered Factory 11606 | -4/Factory | Evolved 2 slots: Utility x2 11959 | -4/Factory | Build established: Scavenger-Gunner 12341 | -4/Factory | Identified exit to Research 12489 | -4/Factory | Entered Research 12489 | -3/Research | Evolved 2 slots: Utility x2 12766 | -3/Research | Lost 3 parts (1n2w) 12842 | -3/Research | Discovered new exit (range 10) 12891 | -3/Research | Entered another Research area 12891 | -2/Research | Evolved 2 slots: Utility x2 13202 | -2/Research | Build established: Gunner 13342 | -2/Research | Lost 3 parts (1n2u) 13534 | -2/Research | Lost 3 parts (2u1w) 13572 | -2/Research | Identified exit to Testing 13619 | -2/Research | Entered Testing 13635 | -2/Testing | Found Prototype Leg 13665 | -2/Testing | Found Prototype Device 13666 | -2/Testing | Identified Adv. Kinecellerator 13668 | -2/Testing | Identified Myomer Exoskeleton 13791 | -2/Testing | Found Prototype Protection 13792 | -2/Testing | Identified Lgt. Regenerative Plating 13795 | -2/Testing | Found Prototype Protection 13799 | -2/Testing | Found Prototype Protection 13803 | -2/Testing | Found Prototype Protection 13811 | -2/Testing | Identified Med. Regenerative Plating 13832 | -2/Testing | Build established: Scavenger-Gunner 13837 | -2/Testing | Found Prototype Processor 13902 | -2/Testing | Scanned by Researcher 13939 | -2/Testing | Identified Hvy. Regenerative Plating 13973 | -2/Testing | Identified SHELL Armor 14032 | -2/Testing | Lost 20 parts (2p3n8u7w) 14068 | -2/Testing | Core integrity fell below 50% 14074 | -2/Testing | Identified Exp. Core Analyzer 14087 | -2/Testing | Core integrity fell below 20% 14087 | -2/Testing | Released all parts (9) 14089 | -2/Testing | Destroyed by H-88 Terminator with Heavy Machine Gun Last Messages --------------- 14086_ Penetrated by Slug. 14086_ U-05 Engineer lays Concrete. 14087_ Penetrated by Slug. 14087_ Held in stasis. 14087_ C-65 Expert is analyzing... 14087_ Released Adv. Targeting Computer. 14087_ Released Huge Storage Unit. 14087_ Released Core Analyzer. 14087_ Released Adv. Targeting Computer. 14087_ Released Core Analyzer. 14087_ Released Adv. Targeting Computer. 14087_ Released 0b10 Decoder Chip [Scout]. 14087_ Released Adv. Melee Analysis Suite. 14087_ Released Exp. Core Analyzer. 14087_ U-05 Engineer lays Concrete. 14087_ Penetrated by Slug. 14088_ U-05 Engineer lays Concrete. 14089_ Penetrated by Slug. 14089_ U-05 Engineer lays Concrete. 14089_ Penetrated by Slug. Map ----- +----------------------------------------------------+ | ?????????????????????????????????????????????????? | | ????????????^????????????????????????????????????? | | ??????????????????????????????????????????????^??? | | ?????????????????????????????????????????????????? | | ?????????????????????????????????????????????????? | | ?????????????????????????????????????????????????? | | ?????????????????????????????????????????????????? | | ?????????????????????????????????????????????????? | | ?????????????????????????????????????????????????? | | ??????????????????????????????????????????+??????? | | ??????????????????????? ???????????????????????? | | ?????????????????????# ???????????????????????? | | ?????????????????????# ???????????????????????? | | ?????????????????????# u???????????????????????? | | ?????????????????????# ???????????????????????? | | ?????????????? ?????+ ???????????????????????? | | ?????????????# ????# h???????????????????????? | | ?????????????# !! ?#R #??????????????????????? | | ?????????????# ! # #??????????????????????? | | ?????????????? # #??????????????????????? | | ????????????## # # ## #??????????????????????? | | ??????????? ! ==%= *!#??????????????????????? | | ??????????? k h% hh#??????????????????????? | | ????????????"" h u =#??????????????????????? | | ????????? ?"" u #####??????????????????? | | ???????? """ @# ""#??????????????????? | | ???????? A ] !# "??????????????????? | | ????????"" h [==![""##???????????????? | | ???? """ ch#%*" "#???????????????? | | ???? """ [%[ ==%="""""#???????????????? | | ???? = %#["""""#???????????????? | | ????? ########???????????????? | | ???#### # #k #??????????????????????? | | ???? == ##########?????????????? | | ??????? %%"" !!# #?????????????? | | ??????????" [""o !! """ ??????????????? | | ??????????" "" """ ??????????????? | | ??????????" #!= ! """ #?????????????? | | ??????? #]=* % #?????????????? | | ??????##########%# ### "" =#?????????????? | | ???????????# !%= # "F"" #?????????????? | | ???????????# != "# # """" #?????????????? | | ???????????# """ T"# # #?????????????? | | ???????????# """ % ""# ##+#####???????????????? | | ???????????# """ # #??????????????????????? | | ???????????# # +??????????????????????? | | ???????????# # #??????????????????????? | | ???????????# # #??????????????????????? | | ???????########+###### #??????????????????????? | | ???????# #??????????????????????? | +----------------------------------------------------+ Best States ------------- Heat Dissipation 49 Coolant Potential 50 Energy Generation 25 Energy Capacity 480 Matter Stores 300 Matter Capacity 450 Sight Range 16 Terrain Scan Density 85 Armor Coverage 1200 Propulsion Shielding 33 Utility Shielding 33 Melee Speed Boost 20 Evasion (%) 40 Targeting Accuracy 24 Melee Accuracy 8 Core Analysis 11 Recoil Reduction 4 Kinecelleration 50 Defensive Hacking 10 Item Schematics ----------------- Graphene Brace | -6/Extension | Hacked Centrium Heavy Armor Plating | -2/Testing | Archive Hvy. Wave Gun | -2/Testing | Archive Robot Schematics ------------------ C-65 Expert | -2/Testing | Archive Fabricated ------------ Graphene Brace | x2 | -6/Factory | Preloaded Repaired ---------- Nothing Studied --------- Lgt. Treads | -9/Materials | Hacked Com. Wheel | -9/Materials | Hacked Imp. Treads | -9/Materials | Hacked Wheel | -3/Research | Hacked Alien Tech Used ----------------- None Achievements -------------- Immobile And Lovin' It My Bad Party Time Challenges ------------ None Game ------ Seed NanofilamentsPhaseStorage Manual? 0 Play Time 01:41:11 Cumulative 45.9 hours Start 2026.02.27 @ 15:13:43 End 2026.02.27 @ 16:55:52 Sessions 1 Manual Loads 0 Difficulty Rogue Special Mode None Game No. 106 Rogue 106 Adventurer 0 Explorer 0 Win Type - Total 0 Types 0/0/0/0/0/0/0/0/0/0 Lore% 29 Gallery% 37 Achievement% 29 Wizard Run 0 Options --------- Layout 2 ASCII 0 Keyboard 1 Movement Arrows Keybinds 0 Fullscreen 1 Font 24/Smallcaps Map View 50x44 Zoom Use 0% Tactical HUD 1 Map Filters NONE Filters NONE Steam 1 RUN: d3592dfd-ac82-452e-b8d2-d2ddd2ec13e0